Workbook

Sheet Entradas
C2: Valor del préstamo:
C3: Plazo:
C4: Tasa:
A6: Cuota | B6: Capital | C6: Interés | D6: Total | E6: Saldo

Sheet Llenado
C2: Valor del préstamo: | D2: 1000000
C3: Plazo: | D3: 12
C4: Tasa: | D4: 0.01
A6: Cuota | B6: Capital | C6: Interés | D6: Total | E6: Saldo
A7: 1 | B7: =PPMT($D$4,A7,$D$3,-$D$2) -> 78848.78868 | C7: =IPMT($D$4,A7,$D$3,-$D$2) -> 10000 | D7: =B7+C7 -> 88848.78868 | E7: =$D$2-SUM($B$7:B7) -> 921151.2113
A8: 2
A9: 3
A10: 4
A11: 5
A12: 6
A13: 7
A14: 8
A15: 9
A16: 10
A17: 11
A18: 12

Sheet Formatos
C2: Valor del préstamo: | D2: 2000000
C3: Plazo: | D3: 60
C4: Tasa: | D4: 0.01
A6: Cuota | B6: Capital | C6: Interés | D6: Total | E6: Saldo
A7: 1 | B7: =PPMT($D$4,A7,$D$3,-$D$2) -> 24488.89537 | C7: =IPMT($D$4,A7,$D$3,-$D$2) -> 20000 | D7: =B7+C7 -> 44488.89537 | E7: =$D$2-SUM($B$7:B7) -> 1975511.105
A8: 2 | B8: 24733.78432 | C8: 19755.11105 | D8: 44488.89537 | E8: =$D$2-SUM($B$7:B8) -> 1950777.32
A9: 3 | B9: 24981.12217 | C9: 19507.7732 | D9: 44488.89537 | E9: =$D$2-SUM($B$7:B9) -> 1925796.198
A10: 4 | B10: 25230.93339 | C10: 19257.96198 | D10: 44488.89537 | E10: =$D$2-SUM($B$7:B10) -> 1900565.265
A11: 5 | B11: 25483.24272 | C11: 19005.65265 | D11: 44488.89537 | E11: =$D$2-SUM($B$7:B11) -> 1875082.022
A12: 6 | B12: 25738.07515 | C12: 18750.82022 | D12: 44488.89537 | E12: =$D$2-SUM($B$7:B12) -> 1849343.947
A13: 7 | B13: 25995.4559 | C13: 18493.43947 | D13: 44488.89537 | E13: =$D$2-SUM($B$7:B13) -> 1823348.491
A14: 8 | B14: 26255.41046 | C14: 18233.48491 | D14: 44488.89537 | E14: =$D$2-SUM($B$7:B14) -> 1797093.081
A15: 9 | B15: 26517.96456 | C15: 17970.93081 | D15: 44488.89537 | E15: =$D$2-SUM($B$7:B15) -> 1770575.116
A16: 10 | B16: 26783.14421 | C16: 17705.75116 | D16: 44488.89537 | E16: =$D$2-SUM($B$7:B16) -> 1743791.972
A17: 11 | B17: 27050.97565 | C17: 17437.91972 | D17: 44488.89537 | E17: =$D$2-SUM($B$7:B17) -> 1716740.996
A18: 12 | B18: 27321.48541 | C18: 17167.40996 | D18: 44488.89537 | E18: =$D$2-SUM($B$7:B18) -> 1689419.511
